[Event "Early-Titled-Tuesday-Blitz-January-30-2024"]
[Site "Chess.com"]
[Date "2024.01.30"]
[Round "11"]
[White "alekroth65"]
[Black "OneTrickPony_82"]
[Result "1/2-1/2"]
[WhiteElo "2372"]
[BlackElo "2498"]
[TimeControl "180+1"]
[EndTime "10:13:37 PST"]
[Termination "Game drawn - timeout vs insufficient material"]

1. d4 {[%clk 0:03:00.9]} 1... Nf6 {[%clk 0:02:59.8]} 2. c4 {[%clk 0:03:00.5]}
2... e6 {[%clk 0:02:59.9]} 3. Nf3 {[%clk 0:03:00]} 3... d5 {[%clk 0:02:59.9]} 4.
Bg5 {[%clk 0:03:00.2]} 4... Be7 {[%clk 0:02:59.1]} 5. e3 {[%clk 0:03:00.1]} 5...
Nbd7 {[%clk 0:02:57.8]} 6. Nc3 {[%clk 0:02:57.6]} 6... h6 {[%clk 0:02:57.7]} 7.
Bh4 {[%clk 0:02:52.2]} 7... O-O {[%clk 0:02:57.4]} 8. Bd3 {[%clk 0:02:47.6]}
8... c5 {[%clk 0:02:51]} 9. cxd5 {[%clk 0:02:45]} 9... Nxd5 {[%clk 0:02:51.1]}
10. Bxe7 {[%clk 0:02:43.3]} 10... Nxe7 {[%clk 0:02:51.2]} 11. O-O {[%clk
0:02:42]} 11... b6 {[%clk 0:02:51.3]} 12. Be4 {[%clk 0:02:34.6]} 12... Rb8
{[%clk 0:02:50.8]} 13. Nb5 {[%clk 0:02:22.9]} 13... Nf6 {[%clk 0:02:46.7]} 14.
Bd3 {[%clk 0:02:09.5]} 14... a6 {[%clk 0:02:30.9]} 15. Nc3 {[%clk 0:02:02.3]}
15... cxd4 {[%clk 0:02:26.9]} 16. Nxd4 {[%clk 0:02:01.9]} 16... Bb7 {[%clk
0:02:26.9]} 17. Be2 {[%clk 0:01:52.3]} 17... Qc7 {[%clk 0:02:07.2]} 18. Rc1
{[%clk 0:01:42]} 18... Qe5 {[%clk 0:02:05.2]} 19. Bf3 {[%clk 0:01:36.2]} 19...
Rfd8 {[%clk 0:02:05.1]} 20. Bxb7 {[%clk 0:01:34.6]} 20... Rxb7 {[%clk
0:02:05.3]} 21. Qf3 {[%clk 0:01:32.2]} 21... Nfd5 {[%clk 0:01:55.6]} 22. Nxd5
{[%clk 0:01:28.1]} 22... Qxd5 {[%clk 0:01:54.6]} 23. Qxd5 {[%clk 0:01:26.4]}
23... Nxd5 {[%clk 0:01:53.3]} 24. a3 {[%clk 0:01:19.5]} 24... Nf6 {[%clk
0:01:48.9]} 25. Rc6 {[%clk 0:01:07.9]} 25... g6 {[%clk 0:01:34.5]} 26. h3 {[%clk
0:01:07.4]} 26... Kg7 {[%clk 0:01:34]} 27. Rfc1 {[%clk 0:01:03.2]} 27... Rdd7
{[%clk 0:01:19.6]} 28. Kf1 {[%clk 0:00:58.1]} 28... Ne4 {[%clk 0:01:15.9]} 29.
Ke2 {[%clk 0:00:55.4]} 29... g5 {[%clk 0:01:06.6]} 30. Rc8 {[%clk 0:00:51.8]}
30... b5 {[%clk 0:00:59]} 31. R1c6 {[%clk 0:00:46.3]} 31... a5 {[%clk
0:00:56.4]} 32. Ra8 {[%clk 0:00:45.2]} 32... a4 {[%clk 0:00:49.5]} 33. Rcc8
{[%clk 0:00:41.2]} 33... b4 {[%clk 0:00:45.8]} 34. Rg8+ {[%clk 0:00:36.6]} 34...
Kf6 {[%clk 0:00:46]} 35. Rh8 {[%clk 0:00:35.1]} 35... bxa3 {[%clk 0:00:43.1]}
36. bxa3 {[%clk 0:00:31.7]} 36... Rb2+ {[%clk 0:00:42.8]} 37. Kf3 {[%clk
0:00:30.2]} 37... Nd2+ {[%clk 0:00:37]} 38. Kg4 {[%clk 0:00:20.9]} 38... Ne4
{[%clk 0:00:19.7]} 39. Rxh6+ {[%clk 0:00:19.2]} 39... Kg7 {[%clk 0:00:19]} 40.
Rah8 {[%clk 0:00:19.5]} 40... f5+ {[%clk 0:00:16.9]} 41. Nxf5+ {[%clk 0:00:14]}
41... exf5+ {[%clk 0:00:16.5]} 42. Kxf5 {[%clk 0:00:13.8]} 42... Nd6+ {[%clk
0:00:14.3]} 43. Ke6 {[%clk 0:00:13.4]} 43... Rbb7 {[%clk 0:00:11.4]} 44. R8h7+
{[%clk 0:00:12.5]} 44... Kg8 {[%clk 0:00:11.3]} 45. Rxd7 {[%clk 0:00:13.3]}
45... Rxd7 {[%clk 0:00:10.3]} 46. Kxd7 {[%clk 0:00:13.3]} 46... Nc4 {[%clk
0:00:11.2]} 47. Rg6+ {[%clk 0:00:13]} 47... Kf7 {[%clk 0:00:10.9]} 48. Rxg5
{[%clk 0:00:12.8]} 48... Nxa3 {[%clk 0:00:10.3]} 49. Rf5+ {[%clk 0:00:13.3]}
49... Kg6 {[%clk 0:00:10]} 50. Ra5 {[%clk 0:00:13.7]} 50... Nc4 {[%clk
0:00:08.4]} 51. Rxa4 {[%clk 0:00:13.5]} 51... Nb6+ {[%clk 0:00:08.7]} 52. Ke6
{[%clk 0:00:12]} 52... Nxa4 {[%clk 0:00:09.6]} 53. f4 {[%clk 0:00:11.4]} 53...
Nc3 {[%clk 0:00:09.2]} 54. g4 {[%clk 0:00:09.2]} 54... Ne4 {[%clk 0:00:08]} 55.
f5+ {[%clk 0:00:06.6]} 55... Kg5 {[%clk 0:00:08]} 56. Ke5 {[%clk 0:00:05.5]}
56... Nc5 {[%clk 0:00:03.4]} 57. e4 {[%clk 0:00:02.8]} 57... Nd7+ {[%clk
0:00:03.3]} 58. Kd6 {[%clk 0:00:02.1]} 58... Nf8 {[%clk 0:00:01.7]} 59. e5
{[%clk 0:00:02.3]} 59... Kh6 {[%clk 0:00:02]} 60. e6 {[%clk 0:00:02.3]} 60...
Nh7 {[%clk 0:00:02.9]} 61. e7 {[%clk 0:00:02.8]} 61... Nf6 {[%clk 0:00:02.9]}
62. Ke6 {[%clk 0:00:03.2]} 62... Kg5 {[%clk 0:00:03.8]} 63. Kf7 {[%clk
0:00:02.1]} 63... Nd5 {[%clk 0:00:03.8]} 64. e8=Q {[%clk 0:00:02.4]} 64... Nf4
{[%clk 0:00:04.7]} 65. Qg8+ {[%clk 0:00:02.1]} 65... Kh4 {[%clk 0:00:05.6]} 66.
Qh7+ {[%clk 0:00:02.1]} 66... Kg3 {[%clk 0:00:06.5]} 67. Qh6 {[%clk 0:00:01.6]}
67... Nd5 {[%clk 0:00:07.4]} 68. Qd2 {[%clk 0:00:01.1]} 68... Kf3 {[%clk
0:00:08.3]} 69. Qd3+ {[%clk 0:00:01.1]} 69... Ne3 {[%clk 0:00:09.2]} 1/2-1/2

[Event "Early-Titled-Tuesday-Blitz-January-30-2024"]
[Site "Chess.com"]
[Date "2024.01.30"]
[Round "11"]
[White "Oleksandr_Bortnyk"]
[Black "AlmasRakhmatullaev"]
[Result "0-1"]
[WhiteElo "3099"]
[BlackElo "2988"]
[TimeControl "180+1"]
[EndTime "10:14:05 PST"]
[Termination "AlmasRakhmatullaev won by resignation"]

1. e4 {[%clk 0:02:48.7]} 1... e5 {[%clk 0:02:56.6]} 2. Nf3 {[%clk 0:02:46.9]}
2... Nf6 {[%clk 0:02:54.9]} 3. Nxe5 {[%clk 0:02:45.3]} 3... Nxe4 {[%clk
0:02:54.5]} 4. Bd3 {[%clk 0:02:38.8]} 4... Nc5 {[%clk 0:02:50.5]} 5. Be2 {[%clk
0:02:36.3]} 5... Nc6 {[%clk 0:02:46.3]} 6. d4 {[%clk 0:02:32.6]} 6... Nxe5
{[%clk 0:02:40.9]} 7. dxe5 {[%clk 0:02:33.5]} 7... d6 {[%clk 0:02:40.5]} 8. Bf4
{[%clk 0:02:27.7]} 8... Ne6 {[%clk 0:02:28.9]} 9. Bg3 {[%clk 0:02:27.7]} 9... d5
{[%clk 0:02:19]} 10. O-O {[%clk 0:02:23.4]} 10... Be7 {[%clk 0:02:14.5]} 11. f4
{[%clk 0:02:22.2]} 11... g6 {[%clk 0:02:12.5]} 12. f5 {[%clk 0:02:14.8]} 12...
gxf5 {[%clk 0:02:11.7]} 13. Nd2 {[%clk 0:01:34.8]} 13... c6 {[%clk 0:01:58.9]}
14. Kh1 {[%clk 0:01:30.7]} 14... f4 {[%clk 0:01:52]} 15. Bxf4 {[%clk 0:01:30.5]}
15... Nxf4 {[%clk 0:01:52.6]} 16. Rxf4 {[%clk 0:01:31.2]} 16... Be6 {[%clk
0:01:53.5]} 17. Nb3 {[%clk 0:01:29]} 17... Qc7 {[%clk 0:01:53.2]} 18. Qd4 {[%clk
0:01:23.6]} 18... O-O-O {[%clk 0:01:48.3]} 19. Bg4 {[%clk 0:01:05.6]} 19... c5
{[%clk 0:01:44.3]} 20. Qa4 {[%clk 0:01:04.9]} 20... Kb8 {[%clk 0:01:41.8]} 21.
Re1 {[%clk 0:01:01.1]} 21... Bg5 {[%clk 0:01:35.2]} 22. Rff1 {[%clk 0:00:53.1]}
22... h5 {[%clk 0:01:27]} 23. Bxe6 {[%clk 0:00:52.4]} 23... fxe6 {[%clk
0:01:27.9]} 24. Qb5 {[%clk 0:00:50.5]} 24... Rc8 {[%clk 0:01:25.1]} 25. Rf3
{[%clk 0:00:41.2]} 25... h4 {[%clk 0:01:21.8]} 26. Ref1 {[%clk 0:00:39.5]} 26...
a6 {[%clk 0:01:19.3]} 27. Qe2 {[%clk 0:00:39.4]} 27... h3 {[%clk 0:01:16.6]} 28.
gxh3 {[%clk 0:00:29.7]} 28... Rcg8 {[%clk 0:00:55.6]} 29. Rf7 {[%clk 0:00:29.2]}
29... Be7 {[%clk 0:00:53.5]} 30. c4 {[%clk 0:00:28]} 30... dxc4 {[%clk
0:00:48.5]} 31. Nd2 {[%clk 0:00:28.5]} 31... Rxh3 {[%clk 0:00:47.3]} 32. Qe4
{[%clk 0:00:24.9]} 32... Rgh8 {[%clk 0:00:44.3]} 33. R1f2 {[%clk 0:00:23.7]}
33... Qd7 {[%clk 0:00:42.2]} 34. Qxc4 {[%clk 0:00:19.7]} 34... R8h7 {[%clk
0:00:32.4]} 35. Rxh7 {[%clk 0:00:16.9]} 35... Rxh7 {[%clk 0:00:33.3]} 36. Qe4
{[%clk 0:00:15.7]} 36... Rh4 {[%clk 0:00:33.3]} 37. Qg2 {[%clk 0:00:15.6]} 37...
Qd3 {[%clk 0:00:31]} 38. Nf3 {[%clk 0:00:14.6]} 38... Re4 {[%clk 0:00:27.4]} 39.
Rd2 {[%clk 0:00:10.5]} 39... Qe3 {[%clk 0:00:27.2]} 40. Qf2 {[%clk 0:00:09.1]}
40... Qf4 {[%clk 0:00:24.2]} 41. Qg3 {[%clk 0:00:09.3]} 41... Qf5 {[%clk
0:00:22.7]} 42. h3 {[%clk 0:00:05.5]} 42... Rf4 {[%clk 0:00:20.9]} 43. Kg2
{[%clk 0:00:05.7]} 43... c4 {[%clk 0:00:19.7]} 44. Re2 {[%clk 0:00:04.3]} 44...
Bc5 {[%clk 0:00:18.9]} 45. Nh4 {[%clk 0:00:03.7]} 45... Qf7 {[%clk 0:00:11.7]}
46. Nf3 {[%clk 0:00:03.5]} 46... Rf5 {[%clk 0:00:11.5]} 47. h4 {[%clk
0:00:03.5]} 47... Qh5 {[%clk 0:00:11.1]} 48. Re4 {[%clk 0:00:03.6]} 48... b5
{[%clk 0:00:10.5]} 49. Qg8+ {[%clk 0:00:01.7]} 49... Kc7 {[%clk 0:00:09.7]} 50.
Rg4 {[%clk 0:00:01.7]} 50... Rf7 {[%clk 0:00:05]} 51. Qg6 {[%clk 0:00:01.8]}
51... Qf5 {[%clk 0:00:04.1]} 52. Qxf5 {[%clk 0:00:02.1]} 52... Rxf5 {[%clk
0:00:04.7]} 53. Rg7+ {[%clk 0:00:01.9]} 53... Kc6 {[%clk 0:00:05]} 54. Ng5
{[%clk 0:00:02.5]} 54... Rxe5 {[%clk 0:00:05]} 55. h5 {[%clk 0:00:03.2]} 55...
Bd4 {[%clk 0:00:05.3]} 56. h6 {[%clk 0:00:03.7]} 56... Re2+ {[%clk 0:00:04.1]}
57. Kf3 {[%clk 0:00:03.5]} 57... Re3+ {[%clk 0:00:04.6]} 58. Kf4 {[%clk
0:00:03.5]} 58... Re1 {[%clk 0:00:03.1]} 59. Rg8 {[%clk 0:00:02.4]} 59... Be3+
{[%clk 0:00:03.3]} 60. Kf3 {[%clk 0:00:01.9]} 60... Bxg5 {[%clk 0:00:03.7]} 61.
Rxg5 {[%clk 0:00:02.7]} 61... Rh1 {[%clk 0:00:04.4]} 62. Rg6 {[%clk 0:00:03.3]}
62... Kd5 {[%clk 0:00:05]} 63. Ke3 {[%clk 0:00:03.7]} 63... a5 {[%clk
0:00:04.5]} 64. b3 {[%clk 0:00:03.8]} 64... c3 {[%clk 0:00:04.6]} 65. Kd3 {[%clk
0:00:04.2]} 65... b4 {[%clk 0:00:05.3]} 66. Rg5+ {[%clk 0:00:03.2]} 66... e5
{[%clk 0:00:05.8]} 67. Rg6 {[%clk 0:00:03.9]} 67... Rh3+ {[%clk 0:00:06]} 68.
Kc2 {[%clk 0:00:04.5]} 68... e4 {[%clk 0:00:06.6]} 69. Ra6 {[%clk 0:00:04]}
69... Kd4 {[%clk 0:00:07.2]} 70. Rd6+ {[%clk 0:00:03.9]} 70... Ke3 {[%clk
0:00:07.2]} 71. Ra6 {[%clk 0:00:04]} 71... Rh2+ {[%clk 0:00:07.6]} 72. Kc1
{[%clk 0:00:04.7]} 72... Ke2 {[%clk 0:00:05.6]} 73. Rxa5 {[%clk 0:00:03.1]}
73... Rxh6 {[%clk 0:00:04.8]} 74. Rb5 {[%clk 0:00:03.7]} 74... e3 {[%clk
0:00:04.9]} 75. Kc2 {[%clk 0:00:03.5]} 75... Rh2 {[%clk 0:00:04.6]} 76. Rxb4
{[%clk 0:00:03.7]} 76... Kf3+ {[%clk 0:00:05.1]} 77. Kxc3 {[%clk 0:00:04.2]}
77... e2 {[%clk 0:00:05.3]} 78. Kd2 {[%clk 0:00:04.9]} 78... Rh1 {[%clk
0:00:05.1]} 79. Rf4+ {[%clk 0:00:04.6]} 79... Kxf4 {[%clk 0:00:05.4]} 80. Kxe2
{[%clk 0:00:05.5]} 80... Rh2+ {[%clk 0:00:06]} 81. Kd3 {[%clk 0:00:04.9]} 81...
Rxa2 {[%clk 0:00:06.9]} 82. Kd4 {[%clk 0:00:05.8]} 82... Kf5 {[%clk 0:00:06.5]}
83. Kd5 {[%clk 0:00:06]} 83... Kf6 {[%clk 0:00:06.9]} 84. b4 {[%clk 0:00:05.9]}
84... Ke7 {[%clk 0:00:07]} 85. Kc6 {[%clk 0:00:06.7]} 85... Kd8 {[%clk
0:00:07.2]} 0-1

[Event "Early-Titled-Tuesday-Blitz-January-30-2024"]
[Site "Chess.com"]
[Date "2024.01.30"]
[Round "11"]
[White "GHANDEEVAM2003"]
[Black "adotand"]
[Result "0-1"]
[WhiteElo "3033"]
[BlackElo "2847"]
[TimeControl "180+1"]
[EndTime "10:14:05 PST"]
[Termination "adotand won by resignation"]

1. b3 {[%clk 0:02:56.6]} 1... a5 {[%clk 0:02:59.6]} 2. Bb2 {[%clk 0:02:57.5]}
2... e6 {[%clk 0:03:00.2]} 3. c4 {[%clk 0:02:53.9]} 3... Nf6 {[%clk 0:03:00.7]}
4. g3 {[%clk 0:02:54.1]} 4... d5 {[%clk 0:03:01]} 5. Bg2 {[%clk 0:02:54.4]} 5...
Nc6 {[%clk 0:03:01.5]} 6. Nf3 {[%clk 0:02:54.7]} 6... Bd6 {[%clk 0:03:02.2]} 7.
O-O {[%clk 0:02:55]} 7... O-O {[%clk 0:03:02.8]} 8. d4 {[%clk 0:02:55.7]} 8...
Re8 {[%clk 0:03:01.8]} 9. Nc3 {[%clk 0:02:55.8]} 9... dxc4 {[%clk 0:02:50.6]}
10. bxc4 {[%clk 0:02:55.7]} 10... e5 {[%clk 0:02:51.2]} 11. Nb5 {[%clk
0:02:51.5]} 11... e4 {[%clk 0:02:49.7]} 12. Ne5 {[%clk 0:02:49.2]} 12... Bf5
{[%clk 0:02:43.2]} 13. Qb3 {[%clk 0:02:29.7]} 13... a4 {[%clk 0:02:33]} 14. Qc2
{[%clk 0:02:20.8]} 14... Bxe5 {[%clk 0:02:22.4]} 15. dxe5 {[%clk 0:02:20.4]}
15... Nxe5 {[%clk 0:02:23.3]} 16. Rad1 {[%clk 0:02:18.2]} 16... Qc8 {[%clk
0:02:23.8]} 17. Bc3 {[%clk 0:02:11.3]} 17... e3 {[%clk 0:02:21.4]} 18. Qb2
{[%clk 0:02:10.5]} 18... exf2+ {[%clk 0:02:20.6]} 19. Rxf2 {[%clk 0:02:11.4]}
19... Neg4 {[%clk 0:02:21.3]} 20. Rf4 {[%clk 0:02:01.6]} 20... Ne3 {[%clk
0:02:21.5]} 21. Bxf6 {[%clk 0:01:36.6]} 21... Nxd1 {[%clk 0:02:21.1]} 22. Qd4
{[%clk 0:01:36.2]} 22... gxf6 {[%clk 0:02:19]} 23. Qxd1 {[%clk 0:01:33.7]} 23...
Ra6 {[%clk 0:02:10]} 24. h4 {[%clk 0:01:27]} 24... h5 {[%clk 0:01:57.3]} 25. Nc3
{[%clk 0:01:16.6]} 25... Kg7 {[%clk 0:01:53.3]} 26. Nd5 {[%clk 0:01:12.9]} 26...
Re5 {[%clk 0:01:51.7]} 27. Qd4 {[%clk 0:01:07.1]} 27... Rd6 {[%clk 0:01:50.5]}
28. Qf2 {[%clk 0:01:05.5]} 28... c6 {[%clk 0:01:46.2]} 29. Ne3 {[%clk
0:00:56.2]} 29... Bg6 {[%clk 0:01:46.6]} 30. g4 {[%clk 0:00:54]} 30... hxg4
{[%clk 0:01:46.8]} 31. Nxg4 {[%clk 0:00:54.1]} 31... Rf5 {[%clk 0:01:46.5]} 32.
e4 {[%clk 0:00:54.5]} 32... Rxf4 {[%clk 0:01:37.5]} 33. Qxf4 {[%clk 0:00:55.4]}
33... Rd1+ {[%clk 0:01:10.7]} 34. Kh2 {[%clk 0:00:51.6]} 34... Qd8 {[%clk
0:01:04]} 35. h5 {[%clk 0:00:50.9]} 35... Qd6 {[%clk 0:00:44]} 36. e5 {[%clk
0:00:42.5]} 36... fxe5 {[%clk 0:00:44.1]} 37. Qh6+ {[%clk 0:00:43]} 37... Kg8
{[%clk 0:00:43]} 38. c5 {[%clk 0:00:43.9]} 38... Qe6 {[%clk 0:00:39]} 39. Qg5
{[%clk 0:00:37.9]} 39... Kg7 {[%clk 0:00:33.1]} 40. hxg6 {[%clk 0:00:35.1]}
40... Qxg6 {[%clk 0:00:29.9]} 41. Qxe5+ {[%clk 0:00:35.2]} 41... f6 {[%clk
0:00:30.5]} 42. Qc7+ {[%clk 0:00:30.6]} 42... Qf7 {[%clk 0:00:30.9]} 43. Qf4
{[%clk 0:00:25.4]} 43... Qh5+ {[%clk 0:00:30.8]} 44. Kg3 {[%clk 0:00:26.1]}
44... Rd3+ {[%clk 0:00:26.1]} 45. Bf3 {[%clk 0:00:26.5]} 45... Qg5 {[%clk
0:00:22.6]} 46. Qc7+ {[%clk 0:00:20.6]} 46... Kg6 {[%clk 0:00:23.2]} 47. Qe7
{[%clk 0:00:21]} 47... f5 {[%clk 0:00:14]} 48. Qe6+ {[%clk 0:00:09.2]} 48... Kg7
{[%clk 0:00:14.5]} 49. Qe5+ {[%clk 0:00:09.4]} 49... Kf7 {[%clk 0:00:11.1]} 50.
Kh2 {[%clk 0:00:04.9]} 50... Qh4+ {[%clk 0:00:09.2]} 51. Kg2 {[%clk 0:00:04.9]}
51... Rd2+ {[%clk 0:00:09.4]} 52. Kf1 {[%clk 0:00:04.3]} 52... fxg4 {[%clk
0:00:09.3]} 53. Qf4+ {[%clk 0:00:04.3]} 53... Qf6 {[%clk 0:00:09.8]} 54. Qxd2
{[%clk 0:00:03.4]} 54... Qxf3+ {[%clk 0:00:10.1]} 55. Kg1 {[%clk 0:00:04.3]}
55... Qg3+ {[%clk 0:00:09.9]} 56. Kf1 {[%clk 0:00:04.4]} 56... Qf3+ {[%clk
0:00:10.4]} 57. Kg1 {[%clk 0:00:05]} 57... Qd5 {[%clk 0:00:09.9]} 58. Qf4+
{[%clk 0:00:05.2]} 58... Ke6 {[%clk 0:00:10.4]} 59. Qxg4+ {[%clk 0:00:05.4]}
59... Ke5 {[%clk 0:00:11.1]} 60. Qg5+ {[%clk 0:00:03.1]} 60... Ke4 {[%clk
0:00:11.7]} 61. Qg2+ {[%clk 0:00:03.2]} 61... Kd3 {[%clk 0:00:12.3]} 62. Qf1+
{[%clk 0:00:02.6]} 62... Kc3 {[%clk 0:00:12.1]} 63. Qc1+ {[%clk 0:00:02.9]}
63... Kd4 {[%clk 0:00:12.6]} 64. Qb2+ {[%clk 0:00:02.7]} 64... Kc4 {[%clk
0:00:13.2]} 65. Qxb7 {[%clk 0:00:03.6]} 65... Qxc5+ {[%clk 0:00:13.7]} 66. Kf1
{[%clk 0:00:04]} 66... Qb5 {[%clk 0:00:12.2]} 67. Qf7+ {[%clk 0:00:03.7]} 67...
Kc3+ {[%clk 0:00:12.7]} 68. Ke1 {[%clk 0:00:04.4]} 68... Qb1+ {[%clk 0:00:12.7]}
69. Ke2 {[%clk 0:00:05.1]} 69... Qd3+ {[%clk 0:00:13.1]} 70. Ke1 {[%clk
0:00:05.8]} 70... Qd2+ {[%clk 0:00:13.7]} 71. Kf1 {[%clk 0:00:06.4]} 71... Qd1+
{[%clk 0:00:13.8]} 72. Kf2 {[%clk 0:00:06.7]} 72... Qd5 {[%clk 0:00:13.7]} 73.
Qf6+ {[%clk 0:00:05.1]} 73... Qd4+ {[%clk 0:00:14.3]} 74. Qxd4+ {[%clk
0:00:04.6]} 74... Kxd4 {[%clk 0:00:15.2]} 75. Ke2 {[%clk 0:00:05.5]} 75... Kc3
{[%clk 0:00:15.8]} 76. Ke3 {[%clk 0:00:05.6]} 76... c5 {[%clk 0:00:16.2]} 77.
Ke4 {[%clk 0:00:06]} 77... c4 {[%clk 0:00:16.9]} 78. Ke3 {[%clk 0:00:06.6]}
78... Kb2 {[%clk 0:00:17.1]} 0-1

[Event "Early-Titled-Tuesday-Blitz-January-30-2024"]
[Site "Chess.com"]
[Date "2024.01.30"]
[Round "11"]
[White "Attacks_Hurricane"]
[Black "LastHeroJr"]
[Result "0-1"]
[WhiteElo "2291"]
[BlackElo "2500"]
[TimeControl "180+1"]
[EndTime "10:14:23 PST"]
[Termination "LastHeroJr won by checkmate"]

1. e4 {[%clk 0:02:53.9]} 1... d6 {[%clk 0:02:58.3]} 2. d4 {[%clk 0:02:53.7]}
2... g6 {[%clk 0:02:58.2]} 3. Nc3 {[%clk 0:02:54]} 3... a6 {[%clk 0:02:58.3]} 4.
f4 {[%clk 0:02:53.8]} 4... b5 {[%clk 0:02:55.9]} 5. Nf3 {[%clk 0:02:53.8]} 5...
Bb7 {[%clk 0:02:55.7]} 6. Bd3 {[%clk 0:02:53.7]} 6... Bg7 {[%clk 0:02:52.7]} 7.
O-O {[%clk 0:02:52.2]} 7... Nf6 {[%clk 0:02:49.1]} 8. e5 {[%clk 0:02:49.4]} 8...
Nd5 {[%clk 0:02:48.3]} 9. Nxd5 {[%clk 0:02:49.2]} 9... Bxd5 {[%clk 0:02:47.9]}
10. c3 {[%clk 0:02:49.4]} 10... O-O {[%clk 0:02:43.9]} 11. Be3 {[%clk
0:02:49.3]} 11... Nd7 {[%clk 0:02:40.3]} 12. Qd2 {[%clk 0:02:47.5]} 12... Qc8
{[%clk 0:02:30.5]} 13. Qf2 {[%clk 0:02:41.5]} 13... Qb7 {[%clk 0:02:28.9]} 14.
Qg3 {[%clk 0:02:35.5]} 14... c5 {[%clk 0:02:24.2]} 15. Ng5 {[%clk 0:02:11.7]}
15... cxd4 {[%clk 0:02:20.3]} 16. cxd4 {[%clk 0:02:09.4]} 16... e6 {[%clk
0:01:59.4]} 17. Rf2 {[%clk 0:01:56.8]} 17... Rac8 {[%clk 0:01:53.4]} 18. Qh4
{[%clk 0:01:41.7]} 18... h6 {[%clk 0:01:50.5]} 19. Nf3 {[%clk 0:01:40.3]} 19...
Be4 {[%clk 0:01:36.8]} 20. Be2 {[%clk 0:01:28.9]} 20... Nb6 {[%clk 0:01:20.6]}
21. f5 {[%clk 0:01:03.8]} 21... exf5 {[%clk 0:01:09.3]} 22. Bxh6 {[%clk
0:01:02]} 22... Bxf3 {[%clk 0:00:21.4]} 23. Bxf3 {[%clk 0:00:59.9]} 23... Qc7
{[%clk 0:00:18.8]} 24. Bxg7 {[%clk 0:00:31.1]} 24... Kxg7 {[%clk 0:00:19.7]} 25.
Qf6+ {[%clk 0:00:32]} 25... Kh7 {[%clk 0:00:19.4]} 26. Bb7 {[%clk 0:00:24.4]}
26... Qd8 {[%clk 0:00:06.7]} 27. Bxc8 {[%clk 0:00:23.6]} 27... Qxf6 {[%clk
0:00:05.8]} 28. exf6 {[%clk 0:00:23.2]} 28... Rxc8 {[%clk 0:00:06.1]} 29. Re1
{[%clk 0:00:21]} 29... Nd5 {[%clk 0:00:06]} 30. g4 {[%clk 0:00:17.6]} 30... fxg4
{[%clk 0:00:04.5]} 31. Re4 {[%clk 0:00:14.7]} 31... g5 {[%clk 0:00:03.3]} 32.
Rxg4 {[%clk 0:00:14.3]} 32... Kg6 {[%clk 0:00:03.6]} 33. h4 {[%clk 0:00:14.6]}
33... Rc1+ {[%clk 0:00:01.1]} 34. Kg2 {[%clk 0:00:14.3]} 34... Ne3+ {[%clk
0:00:01.2]} 35. Kg3 {[%clk 0:00:14]} 35... Nxg4 {[%clk 0:00:01.3]} 36. Kxg4
{[%clk 0:00:14.9]} 36... gxh4 {[%clk 0:00:02.2]} 37. Kxh4 {[%clk 0:00:15.2]}
37... Rd1 {[%clk 0:00:02.7]} 38. Rf4 {[%clk 0:00:14.7]} 38... Rd2 {[%clk
0:00:02.3]} 39. b4 {[%clk 0:00:12.3]} 39... Rxa2 {[%clk 0:00:01.9]} 40. Kg4
{[%clk 0:00:12.9]} 40... Rb2 {[%clk 0:00:01.6]} 41. Kf3 {[%clk 0:00:13.1]} 41...
Rb3+ {[%clk 0:00:01.7]} 42. Ke4 {[%clk 0:00:13.7]} 42... Rxb4 {[%clk 0:00:02.6]}
43. Kd5 {[%clk 0:00:14.3]} 43... a5 {[%clk 0:00:03]} 44. Kxd6 {[%clk 0:00:14]}
44... a4 {[%clk 0:00:03.4]} 45. Kc5 {[%clk 0:00:13.6]} 45... Rb2 {[%clk
0:00:03.4]} 46. d5 {[%clk 0:00:13.9]} 46... a3 {[%clk 0:00:03.3]} 47. d6 {[%clk
0:00:07.4]} 47... a2 {[%clk 0:00:03.2]} 48. d7 {[%clk 0:00:07]} 48... Rd2 {[%clk
0:00:02.6]} 49. Rg4+ {[%clk 0:00:04.6]} 49... Kxf6 {[%clk 0:00:01.6]} 50. Rg1
{[%clk 0:00:05.1]} 50... Rxd7 {[%clk 0:00:01.4]} 51. Ra1 {[%clk 0:00:05.7]}
51... Rc7+ {[%clk 0:00:02.1]} 52. Kxb5 {[%clk 0:00:05.7]} 52... Ra7 {[%clk
0:00:03]} 53. Kc4 {[%clk 0:00:06.2]} 53... Ra8 {[%clk 0:00:03.7]} 54. Kd3 {[%clk
0:00:06.8]} 54... Ke5 {[%clk 0:00:04.4]} 55. Ke3 {[%clk 0:00:07.1]} 55... f5
{[%clk 0:00:04.1]} 56. Kd3 {[%clk 0:00:07.8]} 56... Ra3+ {[%clk 0:00:04.2]} 57.
Kc2 {[%clk 0:00:07.9]} 57... f4 {[%clk 0:00:05.1]} 58. Kb2 {[%clk 0:00:08.5]}
58... Ra7 {[%clk 0:00:05.3]} 59. Re1+ {[%clk 0:00:09.1]} 59... Kf5 {[%clk
0:00:05.8]} 60. Ka1 {[%clk 0:00:10]} 60... f3 {[%clk 0:00:05.4]} 61. Rc1 {[%clk
0:00:10]} 61... Kf4 {[%clk 0:00:05.5]} 62. Rf1 {[%clk 0:00:10.2]} 62... Ke3
{[%clk 0:00:05.3]} 63. Rc1 {[%clk 0:00:10.3]} 63... f2 {[%clk 0:00:05.3]} 64.
Rc3+ {[%clk 0:00:09.3]} 64... Ke2 {[%clk 0:00:05.2]} 65. Rc2+ {[%clk 0:00:09.3]}
65... Kf3 {[%clk 0:00:05.3]} 66. Rc3+ {[%clk 0:00:09.3]} 66... Kg2 {[%clk
0:00:05.5]} 67. Rc2 {[%clk 0:00:09.7]} 67... Re7 {[%clk 0:00:05.4]} 68. Kxa2
{[%clk 0:00:09.2]} 68... Kg1 {[%clk 0:00:05.6]} 69. Rc8 {[%clk 0:00:08.5]} 69...
f1=Q {[%clk 0:00:05.2]} 70. Rg8+ {[%clk 0:00:09.4]} 70... Qg2+ {[%clk
0:00:04.8]} 71. Rxg2+ {[%clk 0:00:09.2]} 71... Kxg2 {[%clk 0:00:05.5]} 72. Ka3
{[%clk 0:00:10.1]} 72... Kf3 {[%clk 0:00:05.7]} 73. Ka4 {[%clk 0:00:11]} 73...
Ke4 {[%clk 0:00:05.8]} 74. Ka5 {[%clk 0:00:11.9]} 74... Rd7 {[%clk 0:00:05.6]}
75. Ka4 {[%clk 0:00:12.8]} 75... Kd5 {[%clk 0:00:05.3]} 76. Ka5 {[%clk
0:00:13.7]} 76... Rc7 {[%clk 0:00:05.4]} 77. Ka4 {[%clk 0:00:14.6]} 77... Kc4
{[%clk 0:00:05.1]} 78. Ka3 {[%clk 0:00:15.5]} 78... Kc3 {[%clk 0:00:04.9]} 79.
Ka4 {[%clk 0:00:14.9]} 79... Rc5 {[%clk 0:00:04.7]} 80. Ka3 {[%clk 0:00:14.8]}
80... Ra5# {[%clk 0:00:05.6]} 0-1